bitfinex-derivatives/quotes_ETHF0:USTF0_20260203
["timestamp","ask_amount","ask_price","bid_price","bid_amount"]
[1770157571636,2.31560099,2266.6,2265.2,2.60221532]
[1770157574250,0.00380553,2266.6,2265.4,2.60219532]
[1770157574643,0.00380553,2266.6,2265.6,0.22098]
[1770157574844,0.00380553,2266.6,2265.9,2.38119532]
[1770157576547,2.04049299,2267.6,2265.3,2.61794335]
[1770157576747,2.31179546,2267.9,2266.7,2.38119532]
[1770157577642,0.00563172,2267.9,2266.9,2.38119532]
[1770157577842,2.31742718,2267.9,2266.9,2.38119532]
[1770157578544,2.31742718,2267.9,2266.7,2.3852798]
[1770157578740,2.31742718,2267.9,2266.7,0.00408448]
[1770157578940,2.31179546,2267.5,2266.7,0.00408448]
[1770157579149,2.31179546,2267.5,2266.7,1e-08]
[1770157579850,2.31179546,2267.5,2266.7,2.38119533]
[1770157582842,2.31179546,2267.5,2266.7,1e-08]
[1770157584654,2.43549954,2267.8,2266.7,1e-08]
[1770157586053,0.00563172,2267.9,2266.7,2.40028833]
[1770157586358,0.00563172,2267.9,2266.7,2.62116833]
[1770157589458,0.00563172,2267.9,2266.9,2.40028832]
[1770157590451,2.44113126,2267.9,2266.7,1e-08]
[1770157590858,0.00563172,2267.9,2266.7,1e-08]
[1770157591159,0.00563172,2267.9,2267.0,2.40028832]
[1770157591659,2.43549954,2268.5,2267.2,2.40028832]
[1770157592358,2.65620954,2268.5,2267.2,2.40028832]
[1770157592558,2.66006464,2268.5,2267.2,2.40028832]
[1770157592863,2.65623954,2268.2,2266.9,2.40028832]
[1770157593055,2.43935464,2268.5,2267.1,2.40028832]
[1770157594658,2.43935464,2268.5,2267.1,2.62111832]
[1770157595350,2.43549954,2268.3,2267.1,2.40028832]
[1770157595556,0.0038551,2268.5,2266.8,2.207]
[1770157595557,2.43549954,2268.0,2266.8,2.40028832]
[1770157595959,2.65624954,2268.0,2266.8,2.40028832]
[1770157597861,2.65624954,2268.0,2266.7,1e-08]
[1770157598062,2.43549954,2267.5,2266.7,1e-08]
[1770157598363,2.43549954,2267.3,2266.7,1e-08]
[1770157599460,0.22083,2267.2,2266.1,2.40028832]
[1770157599663,2.43549954,2267.1,2265.8,2.40028832]
[1770157600361,2.43549954,2266.4,2265.2,2.40028832]
[1770157600556,2.43549954,2266.1,2265.2,0.00313034]
[1770157600962,2.43549954,2266.1,2264.9,3.54179725]
[1770157601365,2.43549954,2266.1,2265.0,2.40028832]
[1770157601561,2.43549954,2266.1,2264.3,2.61794335]
[1770157601562,2.65643954,2266.1,2264.3,2.61794335]
[1770157601767,2.43549954,2265.6,2264.2,2.40028832]
[1770157602068,2.65649954,2265.5,2263.9,2.40028832]
[1770157602262,2.43549954,2265.3,2263.9,2.40028832]
[1770157602463,0.22101,2265.4,2263.9,2.40028832]
[1770157602464,2.43549954,2265.1,2263.9,2.40028832]
[1770157602663,2.43549954,2265.1,2263.3,2.40028832]
[1770157603368,2.43549954,2265.1,2263.5,2.40028832]
[1770157603667,2.43549954,2265.1,2263.5,2.40570449]
[1770157603868,2.43549954,2265.1,2263.7,2.40028832]
[1770157604665,2.589,2265.3,2263.7,2.62145832]
[1770157604862,2.43549954,2265.6,2264.1,2.40028832]
[1770157605062,2.43549954,2265.6,2264.1,2.62141832]
[1770157605264,4.64349954,2266.0,2264.6,2.40028832]
[1770157605465,4.64349954,2266.0,2264.6,2.62136832]
[1770157605862,4.64349954,2266.0,2264.8,2.40028832]
[1770157606772,2.43549954,2265.9,2264.8,2.40028832]
[1770157610870,2.43549954,2265.9,2264.4,2.46255378]
[1770157612773,2.43549954,2265.9,2264.7,2.46255378]
[1770157612974,2.43549954,2265.9,2264.9,2.46255378]
[1770157618178,2.41170862,2266.2,2264.9,2.46255378]
[1770157620880,0.00333104,2266.4,2265.6,0.22098]
[1770157621183,0.00333104,2266.4,2265.7,2.33821285]
[1770157621385,12.69970862,2267.1,2265.7,2.33821285]
[1770157621581,2.41170862,2267.1,2265.7,2.33821285]
[1770157621780,2.41170862,2267.1,2265.9,2.33821285]
[1770157621982,2.41170862,2266.9,2265.6,2.34166271]
[1770157622182,2.41170862,2266.9,2265.8,2.33821285]
[1770157622477,2.41513331,2266.9,2265.8,2.33821285]
[1770157624480,2.41513331,2266.9,2265.6,0.00344986]
[1770157624481,0.00342469,2266.9,2266.0,2.55915285]
[1770157624675,3.351,2267.8,2266.2,2.33821285]
[1770157624882,2.41170862,2267.7,2266.4,2.33821285]
[1770157625184,2.41170862,2267.7,2266.4,2.55911285]
[1770157625782,2.41557316,2267.7,2266.4,2.55911285]
[1770157626083,0.00386454,2267.7,2266.8,2.33821285]
[1770157626278,2.41170862,2268.7,2266.8,2.33821285]
[1770157626483,2.41170862,2268.7,2267.3,2.33821285]
[1770157627279,2.41717598,2268.7,2267.3,2.34378217]
[1770157628785,2.41170862,2268.4,2267.3,2.34378217]
[1770157629486,2.63242862,2268.4,2267.3,0.00556932]
[1770157629676,2.63242862,2268.4,2267.3,2.34378217]
[1770157629876,2.63242862,2268.4,2267.3,0.00556932]
[1770157630783,2.41170862,2267.8,2266.4,2.33821285]
[1770157631483,2.63247862,2267.8,2266.4,2.33821285]
[1770157631985,2.41170862,2267.8,2266.4,2.34309403]
[1770157633688,2.41170862,2267.8,2266.4,2.56399403]
[1770157636589,2.41170862,2267.8,2266.5,0.2209]
[1770157636888,2.41170862,2267.8,2266.6,2.33821285]
[1770157638487,2.41170862,2268.3,2267.0,2.33821285]
[1770157639083,2.41170862,2268.6,2267.2,2.33821285]
[1770157639289,2.41170862,2268.6,2267.2,2.55904285]
[1770157641392,2.63239862,2268.6,2267.2,2.55904285]
[1770157641690,2.4541879,2268.3,2267.2,2.33821285]
[1770157642585,2.4541879,2268.0,2266.5,2.71115547]
[1770157642789,2.4541879,2267.8,2266.5,2.71115547]
[1770157643592,2.6749679,2267.7,2266.5,2.49025547]
[1770157643888,2.4541879,2267.7,2266.5,2.49025547]
[1770157645689,2.4541879,2266.8,2265.5,2.49025547]
[1770157645893,2.4541879,2266.6,2265.5,2.49025547]
[1770157646782,2.45875697,2266.6,2265.5,2.49577793]
[1770157646988,2.45875697,2266.6,2265.5,0.00552246]
[1770157647184,2.4541879,2266.0,2264.7,2.61257999]
[1770157647387,2.6751379,2266.0,2264.6,2.49025547]
[1770157647581,2.4541879,2266.0,2264.6,2.49025547]
[1770157647784,2.4541879,2266.3,2264.8,2.49025547]
[1770157648191,2.4541879,2266.3,2264.8,2.49519885]
[1770157648891,2.4541879,2265.5,2264.2,2.49025547]
[1770157649992,2.4541879,2265.5,2264.2,2.49454807]
[1770157652289,2.6751879,2265.5,2264.2,2.49454807]
[1770157652886,2.6751879,2265.5,2264.2,0.0042926]
[1770157653091,2.4541879,2265.3,2264.2,0.0042926]
[1770157653291,2.6751979,2265.3,2264.2,0.0042926]
[1770157653492,2.4541879,2265.3,2264.2,0.0042926]
[1770157654389,0.22103,2265.2,2264.2,0.0042926]
[1770157654693,2.4541879,2265.1,2264.2,0.0042926]
[1770157654896,2.4541879,2264.7,2263.4,2.49025547]
[1770157655791,0.0041815,2264.7,2263.4,2.49401674]
[1770157655994,0.0041815,2264.7,2263.6,2.49025547]
[1770157656192,0.0041815,2264.7,2263.6,2.71143547]
[1770157656393,0.0041815,2264.7,2263.8,2.49025547]
[1770157657487,2.4583694,2264.7,2263.8,2.49025547]
[1770157657888,2.4583694,2264.7,2263.5,2.49025547]
[1770157658493,2.6794494,2264.7,2263.5,2.49025547]
[1770157659088,0.2252615,2264.7,2263.5,2.49025547]
[1770157659398,0.0041815,2264.7,2263.5,2.49025547]
[1770157659692,0.0041815,2264.7,2263.8,2.49025547]
[1770157660191,0.0041815,2264.7,2263.9,0.22115]
[1770157660397,0.0041815,2264.7,2264.0,2.49025547]
[1770157661802,2.4583694,2264.7,2263.5,2.49025547]
[1770157662097,0.0041815,2264.7,2264.0,2.49025547]
[1770157662291,2.209,2265.7,2264.0,2.49025547]
[1770157662495,2.4541879,2265.4,2264.3,2.49025547]
[1770157662692,4.6631879,2265.7,2264.3,2.71136547]
[1770157663401,2.4541879,2265.6,2264.3,2.71136547]
[1770157663904,2.4541879,2265.6,2263.8,2.209]
[1770157663905,2.21434825,2265.7,2264.5,2.49025547]
[1770157666502,2.21434825,2265.7,2264.5,2.71134547]
[1770157667103,2.4541879,2266.2,2264.9,2.49025547]
[1770157667299,2.752,2266.9,2264.9,2.49025547]
[1770157667601,2.4541879,2266.8,2265.3,2.49025547]
[1770157668097,2.45747183,2266.8,2265.3,2.49543782]
[1770157669501,2.45747183,2266.8,2265.3,2.71644782]
[1770157670203,2.67834183,2266.8,2265.3,2.49543782]
[1770157674506,2.67834183,2266.8,2265.3,0.00518235]
[1770157674507,2.51021257,2266.6,2265.3,0.00518235]
[1770157675106,0.00328393,2266.8,2265.3,2.49817819]
[1770157675107,2.51021257,2266.4,2265.3,2.49817819]
[1770157676306,2.3122636,2266.7,2265.3,2.49817819]
[1770157677406,2.3122636,2266.7,2265.5,2.49299584]
[1770157679101,2.5331436,2266.7,2265.3,2.49817819]
[1770157682805,0.00328393,2266.8,2265.3,2.49817819]
[1770157683112,0.00328393,2266.8,2266.0,2.49299584]
[1770157683507,2.209,2267.0,2266.2,2.49299584]
[1770157683707,2.3122636,2267.5,2266.3,0.22091]
[1770157683907,2.3122636,2267.5,2266.4,2.49299584]
[1770157684107,3.306,2267.7,2266.4,2.71389584]
[1770157684312,5.6182636,2267.7,2266.4,2.71389584]
[1770157684608,0.00345023,2267.7,2266.7,2.71386584]
[1770157685110,0.00345023,2267.7,2266.7,2.49299584]
[1770157688014,2.5330936,2267.3,2266.1,2.49299584]
[1770157691417,2.3122636,2267.4,2265.8,2.04293792]
[1770157691717,0.00345023,2267.7,2266.8,2.49299584]
[1770157693517,2.3122636,2268.2,2266.8,2.71386584]
[1770157694312,0.2207,2268.6,2267.1,2.49299584]
[1770157694517,2.3122636,2268.5,2267.1,2.49655579]
[1770157697421,2.3122636,2268.5,2267.1,2.71739579]
[1770157697923,2.3122636,2268.1,2267.1,2.49655579]
[1770157698623,2.5330136,2268.1,2267.1,0.00355995]
[1770157699720,2.55748599,2268.5,2267.1,0.00355995]
[1770157699721,2.3122636,2267.8,2267.1,0.00355995]
[1770157699921,2.3122636,2267.8,2266.5,8.87199584]
[1770157700118,2.3122636,2267.8,2266.6,2.49299584]
[1770157701026,2.3122636,2267.8,2266.6,2.49678556]
[1770157704826,2.32924368,2267.5,2266.6,2.49678556]
[1770157706121,2.32924368,2267.5,2266.6,0.00378972]
[1770157706927,2.32924368,2267.5,2266.6,2.38315194]
[1770157707327,38.42245897,2268.1,2266.8,2.37936222]
[1770157707328,2.32924368,2267.8,2266.8,2.37936222]
[1770157707626,2.32924368,2268.1,2266.8,2.60023222]
[1770157712730,2.32924368,2268.0,2266.8,2.37936222]
[1770157712930,2.32924368,2267.9,2266.8,2.37936222]
[1770157713929,4.88611239,2267.9,2266.8,2.37936222]
[1770157714135,2.32924368,2267.8,2266.6,0.00378972]
[1770157714333,2.32924368,2267.7,2266.6,2.38315194]
[1770157716231,2.77762871,2267.9,2266.6,2.38315194]
[1770157716637,5.10687239,2267.9,2266.6,2.38315194]
[1770157717141,2.32924368,2267.8,2266.6,2.38315194]
[1770157720240,2.55686871,2268.1,2267.2,2.37936222]
[1770157720543,2.32924368,2268.4,2267.4,2.37936222]
[1770157721843,2.32924368,2268.3,2267.4,2.37936222]
[1770157725555,5.6687566,2268.6,2267.4,2.37936222]
[1770157725753,2.32924368,2268.5,2267.5,2.37936222]
[1770157728050,3.33951292,2268.6,2267.5,2.37936222]
[1770157728254,2.55686871,2269.2,2268.1,2.37936222]
[1770157728455,2.32924368,2269.2,2268.1,2.37936222]
[1770157729255,2.207,2270.0,2268.7,2.62503902]
[1770157729457,38.42245897,2270.8,2269.2,2.59999222]
[1770157729657,38.42245897,2270.6,2269.2,2.37936222]
[1770157729852,42.83045897,2270.6,2269.0,2.37936222]
[1770157730054,2.702,2270.7,2269.2,2.37936222]
[1770157730249,0.00320898,2270.7,2269.5,2.37936222]
[1770157730452,0.00320898,2270.7,2269.6,2.37936222]
[1770157730957,4.41120898,2270.7,2269.6,2.37936222]
[1770157731158,0.00320898,2270.7,2269.6,2.37936222]
[1770157731358,0.00320898,2270.7,2269.4,2.588]
[1770157731359,0.00320898,2270.7,2269.8,2.413698]
[1770157731653,2.6546456,2271.2,2269.9,2.413698]
[1770157732558,2.6603175,2271.2,2269.9,2.413698]
[1770157732853,2.43268104,2270.9,2269.5,2.413698]
[1770157733053,2.43268104,2270.6,2269.5,2.413698]
[1770157733454,6.84068104,2270.5,2269.5,2.413698]
[1770157733657,2.43268104,2270.3,2269.5,2.413698]
[1770157734254,2.43268104,2270.5,2269.5,2.413698]
[1770157734458,4.408,2270.4,2269.5,2.413698]
[1770157735756,6.9034948,2270.4,2269.5,2.413698]
[1770157735957,2.4954948,2270.8,2269.5,2.413698]
[1770157736458,2.4954948,2270.8,2269.5,2.634298]
[1770157736759,2.4954948,2271.1,2269.7,2.46310397]
[1770157737058,2.4954948,2271.1,2269.9,2.46310397]
[1770157738749,2.4954948,2271.1,2269.3,2.46310397]
[1770157738750,4.408,2270.7,2269.3,2.46310397]
[1770157738956,2.4954948,2270.6,2269.3,2.46310397]
[1770157740159,2.4954948,2270.6,2269.3,2.68372397]
[1770157740758,2.4954948,2270.5,2269.3,2.68372397]
[1770157741058,2.4954948,2270.4,2269.3,2.68372397]
[1770157741559,4.408,2270.4,2269.3,2.68372397]
[1770157741761,4.408,2270.3,2269.3,2.68372397]
[1770157741962,2.4954948,2270.5,2269.3,2.68372397]
[1770157742461,2.4954948,2270.8,2269.5,2.46310397]
[1770157742860,0.22047,2270.9,2269.5,2.46310397]
[1770157742861,6.9034948,2270.7,2269.5,2.46310397]
[1770157743064,2.4954948,2270.5,2269.3,2.46310397]
[1770157743960,2.4954948,2270.4,2269.3,2.46310397]
[1770157744158,2.4954948,2269.6,2268.4,2.46310397]
[1770157744358,2.4954948,2269.3,2268.4,2.46310397]
[1770157744759,2.4954948,2269.1,2268.1,2.46310397]
[1770157744962,4.408,2269.0,2268.1,2.46310397]
[1770157745155,0.00534343,2269.0,2268.1,2.46737771]
[1770157745355,0.00534343,2269.0,2268.1,0.00427374]
[1770157745356,2.4954948,2268.8,2268.1,0.00427374]
[1770157745662,4.408,2268.4,2267.7,2.46310397]
[1770157745864,2.4954948,2268.7,2267.7,2.46310397]
[1770157746157,4.408,2268.7,2267.7,2.46310397]
[1770157746360,0.00534343,2269.0,2267.7,2.46310397]
[1770157746558,0.00534343,2269.0,2267.7,2.46814783]
[1770157746862,2.4954948,2269.6,2267.8,2.46310397]
[1770157747062,2.4954948,2269.2,2267.9,2.46310397]
[1770157747258,2.4954948,2268.8,2267.7,0.00504386]
[1770157747764,6.9034948,2268.6,2267.7,0.00504386]
[1770157748065,6.9034948,2268.3,2267.7,0.00504386]
[1770157748460,4.408,2268.1,2267.7,0.00504386]
[1770157748764,4.408,2267.8,2266.8,2.46310397]
[1770157749058,2.4954948,2268.1,2266.8,2.46310397]
[1770157749364,6.9034948,2268.1,2266.8,2.46310397]
[1770157749564,2.4954948,2268.0,2266.8,2.46686813]
[1770157749765,6.9034948,2268.0,2266.8,2.46686813]
[1770157750163,2.4954948,2268.0,2266.8,2.68772813]
[1770157750364,2.4954948,2268.3,2267.1,2.46310397]
[1770157750770,4.408,2268.2,2267.1,2.46310397]
[1770157751560,4.408,2268.2,2267.1,2.68394397]
[1770157751770,4.408,2268.2,2266.8,0.00376416]
[1770157751771,2.4954948,2268.7,2267.4,2.46310397]
[1770157752260,4.408,2268.7,2267.4,2.68391397]
[1770157752565,2.4954948,2268.6,2267.4,2.68391397]
[1770157752959,6.9034948,2268.6,2267.4,2.68391397]
[1770157753261,2.4954948,2268.5,2267.1,2.46310397]
[1770157753667,2.4954948,2267.9,2266.9,2.587]
[1770157753867,2.4954948,2267.7,2266.8,0.00376416]
[1770157754166,2.4954948,2268.3,2267.0,2.46310397]
[1770157754364,2.4954948,2268.0,2267.0,2.46310397]
[1770157754566,6.9034948,2268.0,2267.0,2.46310397]
[1770157755258,6.9034948,2268.0,2267.0,2.68395397]
[1770157756067,0.2207,2268.5,2266.8,2.59076416]
[1770157756068,6.9034948,2267.7,2266.8,2.59076416]
[1770157756268,2.4954948,2267.7,2266.8,0.00376416]
[1770157756467,4.408,2267.4,2266.8,0.00376416]
[1770157756960,2.4954948,2267.1,2266.0,2.46310397]
[1770157757166,2.4954948,2266.9,2265.9,2.205]
[1770157757565,2.4954948,2267.7,2266.3,2.46310397]
[1770157757963,2.4954948,2267.2,2266.3,2.46310397]
[1770157758164,2.4954948,2267.2,2266.3,2.46646307]
[1770157758360,4.408,2267.0,2266.3,2.46646307]
[1770157758869,2.4954948,2267.6,2266.3,2.46646307]
[1770157759166,2.4954948,2267.6,2266.5,2.68400397]
[1770157759368,0.0048306,2267.7,2266.7,2.46310397]
[1770157760265,4.4128306,2267.7,2266.7,2.46310397]
[1770157760567,6.9034948,2267.6,2266.7,2.46310397]
[1770157761467,4.408,2267.5,2266.7,2.46310397]
[1770157761965,2.4954948,2267.6,2266.3,0.0033591]
[1770157762170,6.7045336,2267.1,2266.3,0.0033591]
[1770157762470,2.2965336,2267.1,2266.3,0.0033591]
[1770157762667,4.408,2266.8,2266.3,0.0033591]
[1770157762870,6.7045336,2266.8,2266.3,0.0033591]
[1770157763170,4.408,2266.6,2266.1,2.47619083]
[1770157763370,4.408,2266.7,2266.1,2.47619083]
[1770157763970,6.6964957,2266.2,2266.1,0.00345972]
[1770157764168,2.2965336,2266.8,2265.5,2.47619083]
[1770157764469,2.2965336,2266.8,2264.8,5.1873102]
[1770157764470,2.2965336,2266.7,2265.1,2.47619083]
[1770157764671,2.2965336,2266.6,2265.1,2.47619083]
[1770157764865,2.2965336,2266.4,2265.1,2.47619083]
[1770157765171,0.22089,2266.6,2265.1,2.4816195]
[1770157765172,2.2965336,2266.1,2265.1,2.4816195]
[1770157765371,2.29986611,2266.1,2265.1,2.4816195]
[1770157765575,4.3999621,2265.9,2265.1,2.4816195]
[1770157766067,2.2965336,2266.4,2265.2,2.47619083]
[1770157766271,2.2965336,2266.4,2265.1,0.00542867]
[1770157766272,2.2965336,2266.4,2265.1,0.22645867]
[1770157766670,2.2965336,2266.4,2265.1,0.00542867]
[1770157767163,2.30100438,2266.4,2265.1,0.00542867]
[1770157769377,2.30100438,2266.4,2265.3,0.22101]
[1770157775473,2.30100438,2266.4,2265.3,0.49355702]
[1770157776579,2.30100438,2266.4,2265.5,0.22099]
[1770157783481,1.78986438,2266.4,2265.4,1.05082424]
[1770157783687,0.00447078,2266.4,2265.4,3.65013444]
[1770157784085,0.00447078,2266.4,2265.5,1.05082424]
[1770157784484,0.00447078,2266.4,2265.8,0.22096]
[1770157784785,0.00447078,2266.4,2265.8,1.27178424]
[1770157785383,2.206,2267.2,2266.1,0.22093]
[1770157785584,2.2965336,2267.1,2266.1,0.22093]
[1770157786286,2.30162137,2267.1,2266.1,0.22093]
[1770157792585,2.30162137,2267.1,2266.3,0.22091]
[1770157792893,2.30162137,2267.1,2266.3,2.8202202]
[1770157793094,2.41058895,2267.6,2266.6,0.22089]
[1770157794197,2.41574587,2267.6,2266.6,0.22089]
[1770157795697,2.41574587,2267.6,2267.0,0.22084]
[1770157795898,10.288,2268.3,2267.0,2.53075142]
[1770157796098,2.56852278,2268.5,2267.1,2.589]
[1770157796398,2.78922278,2268.6,2267.1,2.589]
[1770157796898,2.79450908,2268.6,2267.1,2.59366384]
[1770157797491,0.22073,2268.2,2267.1,0.00466384]
[1770157797896,2.35614517,2268.1,2266.6,2.8202002]
[1770157798095,2.35614517,2268.1,2266.6,0.22089]
[1770157798599,2.57690517,2267.9,2266.4,2.5993102]
[1770157798999,2.57690517,2267.9,2266.4,2.60425619]
[1770157800503,2.57690517,2267.9,2266.5,0.2209]
[1770157801099,2.35614517,2267.9,2266.6,2.30991142]
[1770157801301,2.35614517,2267.9,2266.9,0.22086]
[1770157801502,2.35614517,2267.9,2266.9,2.80986]
[1770157801904,2.35614517,2267.9,2266.9,5.11977142]
[1770157802099,2.35614517,2267.9,2266.9,2.80986]
[1770157802300,2.35614517,2267.9,2266.6,2.5993102]
[1770157802506,2.35614517,2267.4,2266.4,0.00494599]
[1770157803105,2.35614517,2267.1,2265.9,2.5993102]
[1770157803409,2.35614517,2267.1,2265.9,2.30991142]
[1770157803605,2.35614517,2267.1,2265.6,4.90922162]
[1770157803802,2.35614517,2266.9,2265.6,5.1883102]
[1770157804002,2.35614517,2266.9,2265.6,2.589]
[1770157804203,0.22087,2266.8,2265.6,2.59383627]
[1770157804409,2.35939586,2266.9,2265.9,2.30991142]
[1770157804808,2.35939586,2266.9,2266.0,2.53086142]
[1770157805108,2.35939586,2266.9,2266.0,0.22095]
[1770157805706,2.35939586,2266.9,2266.0,2.53086142]
[1770157809208,2.35614517,2267.3,2266.3,2.30991142]
[1770157809412,2.35614517,2267.3,2266.4,4.89891142]
[1770157810114,10.288,2267.9,2266.5,2.53080142]
[1770157810313,2.35614517,2267.8,2266.5,2.53080142]
[1770157810607,2.56852278,2269.0,2267.5,0.2208]
[1770157810807,2.56852278,2269.0,2267.4,2.589]
[1770157811204,2.56852278,2269.0,2267.4,4.89891142]
[1770157811409,2.56852278,2269.1,2267.4,4.89891142]
[1770157811606,0.2259655,2269.1,2267.5,2.30991142]
[1770157811811,0.0053155,2269.1,2267.8,2.30991142]
[1770157812006,0.0053155,2269.1,2267.9,2.53067142]
[1770157812209,0.0053155,2269.1,2268.1,2.30991142]
[1770157812414,0.0053155,2269.1,2268.3,2.30991142]
[1770157812610,2.36146067,2269.1,2268.0,2.5993102]
[1770157812911,2.36146067,2269.1,2268.0,2.30991142]
[1770157813414,2.36146067,2269.1,2268.1,2.30991142]
[1770157813815,2.36146067,2269.1,2267.8,2.53068142]
[1770157814015,2.36146067,2269.1,2267.6,2.589]
[1770157814308,2.36146067,2269.1,2267.5,5.11971142]
[1770157815309,2.36146067,2269.1,2267.6,2.30991142]
[1770157816307,2.36146067,2269.1,2268.0,2.30991142]
[1770157816707,2.36146067,2269.1,2267.9,0.22076]
[1770157816908,2.36146067,2269.1,2267.7,2.30991142]
[1770157817307,2.36146067,2269.1,2267.5,2.589]
[1770157817912,2.36146067,2269.1,2267.4,2.53449806]
[1770157818111,2.35614517,2268.9,2267.4,2.53449806]
[1770157820917,2.57681517,2268.9,2267.4,2.53449806]
[1770157821318,2.28303382,2268.6,2267.4,0.00377664]
[1770157822519,2.28303382,2268.6,2267.4,2.71518584]
[1770157823116,2.28303382,2268.6,2267.5,2.7113892]
[1770157823614,2.28303382,2268.6,2267.6,2.7113892]
[1770157825819,2.28303382,2268.6,2267.6,0.22079]
[1770157826617,2.28303382,2268.6,2267.6,2.7113892]
[1770157829624,2.28303382,2268.6,2267.4,0.00377664]
[1770157829820,2.28303382,2268.0,2266.7,2.4905992]
[1770157830726,2.28303382,2268.0,2266.7,2.71716055]
[1770157831124,2.28303382,2268.0,2267.1,2.7114392]
[1770157832920,2.28303382,2268.0,2266.9,4.794]
[1770157833118,2.28303382,2268.0,2266.7,0.00568135]
[1770157833325,2.28303382,2268.0,2266.7,2.49628055]
[1770157835122,2.28303382,2268.0,2266.7,2.71715055]
[1770157837729,2.28303382,2268.0,2266.9,2.4905992]
[1770157838425,8.99821942,2269.0,2266.7,0.00568135]
[1770157838426,2.28303382,2268.4,2267.3,2.4905992]
[1770157838624,2.28303382,2268.4,2267.5,2.4905992]
[1770157838821,0.0053155,2269.1,2267.7,2.4905992]
[1770157839026,2.28834932,2269.1,2267.7,2.4905992]
[1770157839224,2.28834932,2269.1,2267.8,2.4905992]
[1770157839424,2.28834932,2269.1,2268.0,2.7113492]
[1770157839622,2.28834932,2269.1,2268.0,0.22075]
[1770157839928,2.28303382,2269.7,2268.6,2.4905992]
[1770157840928,2.28685249,2269.7,2268.6,2.49381624]
[1770157841331,2.28685249,2269.7,2268.6,2.71450624]
[1770157841722,0.00381867,2269.7,2268.8,2.4905992]
[1770157841926,0.00381867,2269.7,2268.9,2.588]
[1770157842329,0.00381867,2269.7,2269.0,2.4905992]
[1770157844031,2.28685249,2269.7,2268.8,0.22067]
[1770157845431,0.00381867,2269.7,2269.0,2.4905992]
[1770157846032,2.28303382,2270.3,2269.2,2.4905992]
[1770157846225,2.28303382,2270.3,2269.3,2.587]
[1770157846424,2.28303382,2270.3,2269.4,2.4905992]
[1770157846633,2.28303382,2270.3,2269.3,2.587]
[1770157846834,2.50356382,2270.3,2268.7,2.4905992]
[1770157847032,2.50358382,2270.1,2268.7,2.4905992]
[1770157847230,2.28303382,2269.9,2268.6,2.59021704]
[1770157847727,2.28303382,2269.9,2268.7,2.4905992]
[1770157848130,2.28303382,2269.9,2268.6,2.59021704]
[1770157850428,2.28303382,2269.9,2268.7,2.7112792]
[1770157851736,2.28303382,2269.9,2268.9,2.33691082]
[1770157851932,0.22063,2269.3,2268.6,0.00321704]
[1770157852132,2.33998567,2269.2,2267.9,2.33691082]
[1770157852338,2.33998567,2268.9,2267.5,2.33691082]
[1770157853138,2.33998567,2268.9,2267.5,2.34046508]
[1770157854934,2.55868512,2269.4,2267.5,2.34046508]
[1770157855234,2.40661148,2270.2,2268.8,2.53421475]
[1770157855433,2.40661148,2270.2,2269.0,2.53419475]
[1770157855634,2.40661148,2270.5,2269.2,2.53417475]
[1770157855840,2.41140608,2270.3,2269.2,2.53736661]
[1770157856139,2.41140608,2270.3,2269.2,0.00319186]
[1770157856833,2.41140608,2270.3,2269.2,2.31673661]
[1770157859037,2.41140608,2270.3,2269.2,0.00319186]
[1770157860633,2.40661148,2270.0,2268.7,2.205]
[1770157861643,2.40661148,2270.0,2268.7,2.21045143]
[1770157862945,2.40661148,2269.6,2268.7,0.00545143]
[1770157864747,2.40661148,2269.6,2268.7,2.31899618]
[1770157866743,2.40661148,2270.2,2269.0,2.53419475]
[1770157867450,2.40661148,2270.2,2269.2,2.53417475]
[1770157868241,0.0047946,2270.3,2269.2,2.53417475]
[1770157868442,2.40661148,2270.8,2269.7,2.31354475]
[1770157868643,2.40661148,2270.8,2269.8,2.53412475]
[1770157869450,0.00339458,2270.8,2269.8,2.53412475]
[1770157869848,0.00339458,2270.8,2269.6,8.7403088]
[1770157869849,2.41000606,2270.8,2269.4,2.62177192]
[1770157870048,2.40661148,2270.6,2269.2,2.62177192]
[1770157870250,2.40661148,2270.6,2269.2,2.53417475]
[1770157870952,2.40661148,2270.6,2269.3,2.53416475]
[1770157871447,2.40661148,2270.6,2269.4,2.53415475]
[1770157872147,2.40661148,2270.6,2269.6,0.22059]
[1770157872353,2.40661148,2270.6,2269.7,2.586]
[1770157872645,2.40661148,2270.6,2269.8,2.31354475]
[1770157872850,0.00339458,2270.8,2269.8,2.31354475]
[1770157873647,0.00339458,2270.8,2269.9,2.53410475]
[1770157874848,2.41000606,2270.8,2269.7,5.20777192]
[1770157875056,2.41000606,2270.8,2269.7,2.586]
[1770157875556,2.41000606,2270.8,2269.7,4.89954475]
[1770157876150,2.41000606,2270.8,2269.8,2.31354475]
[1770157876650,2.41000606,2270.8,2269.9,2.53411475]
[1770157876852,0.22196456,2271.2,2270.2,2.53407475]
[1770157877056,0.22196456,2271.2,2270.4,2.31354475]
[1770157877453,2.80635,2272.2,2270.4,2.31354475]
[1770157877758,2.40661148,2272.1,2270.8,2.31354475]
[1770157878050,2.63135583,2272.1,2270.8,0.00541789]
[1770157878250,2.41100583,2272.1,2270.8,2.31896264]
[1770157878453,2.40661148,2271.9,2270.8,0.00541789]
[1770157878758,2.62699148,2271.9,2270.8,0.00541789]
[1770157879557,2.40661148,2271.9,2270.8,0.00541789]
[1770157880657,2.40661148,2271.9,2270.8,2.44490935]
[1770157882456,2.39325839,2271.3,2269.6,2.66008146]
[1770157882660,2.39325839,2271.3,2269.6,2.43949146]
[1770157882860,2.39325839,2271.3,2269.8,2.66006146]
[1770157883352,2.39325839,2271.3,2269.8,2.43949146]
[1770157883558,2.39325839,2270.8,2269.8,0.00554378]
[1770157884653,2.39325839,2270.8,2269.8,2.44503524]
[1770157887663,10.288,2271.5,2270.0,2.66005146]
[1770157887664,2.39325839,2271.4,2270.0,2.66005146]
[1770157887862,2.39325839,2271.0,2269.8,0.00554378]
[1770157888364,2.39325839,2270.7,2269.8,0.00554378]
[1770157889464,2.39325839,2270.7,2269.8,2.44503524]
[1770157889763,2.39325839,2270.7,2269.8,2.66560524]
[1770157890162,2.39325839,2270.7,2269.8,0.22611378]
[1770157892759,2.39325839,2270.7,2269.8,0.00554378]
[1770157892959,2.39325839,2270.7,2269.8,2.44503524]
[1770157894766,2.39325839,2270.7,2269.8,0.00554378]
[1770157897570,2.39325839,2270.7,2269.9,2.66005146]
[1770157897870,2.39325839,2270.7,2269.9,5.28182338]
[1770157898068,2.39325839,2271.2,2270.1,2.43949146]
[1770157898268,2.39325839,2271.2,2270.4,0.22052]
[1770157900170,2.39325839,2271.2,2269.9,7.63133192]
[1770157900771,2.39325839,2271.2,2270.0,2.66005146]
[1770157900971,2.39325839,2271.2,2270.0,5.28182338]
[1770157903374,2.39325839,2271.2,2270.1,5.06126338]
[1770157903674,2.39325839,2271.2,2270.1,2.43949146]
[1770157904577,2.39325839,2271.2,2270.2,2.43949146]
[1770157904772,2.39325839,2271.2,2270.2,2.66003146]
[1770157904974,2.39325839,2271.2,2270.3,2.43949146]